[Event "Titled Tuesday Blitz February 21 Early 2023"]
[White "Yeritsyan, Hayk"]
[Black "Goroshkov, Maksym"]
[WhiteFideId "13307320"]
[BlackFideId "14142716"]
[WhiteElo "2241"]
[BlackElo "2287"]
[Result "1-0"]
[Round "09"]
[TimeControl "180+2"]
[Date "2023.02.21"]
[WhiteClock "0:00:15"]
[BlackClock "0:00:20"]

1. d4 {[%clk 0:03:00]}  Nf6 {[%clk 0:02:57]} 2. Nf3 {[%clk 0:03:01]}  d6 {[%clk 0:02:57]} 3. Bf4 {[%clk 0:03:01]}  g6 {[%clk 0:02:58]} 4. h3 {[%clk 0:02:59]}  Bg7 {[%clk 0:02:58]} 5. e3 {[%clk 0:03:00]}  O-O {[%clk 0:02:59]} 6. c3 {[%clk 0:03:00]}  c5 {[%clk 0:02:59]} 7. Be2 {[%clk 0:03:01]}  Nc6 {[%clk 0:02:57]} 8. O-O {[%clk 0:03:01]}  cxd4 {[%clk 0:02:56]} 9. exd4 {[%clk 0:03:01]}  Re8 {[%clk 0:02:56]} 10. Na3 {[%clk 0:03:01]}  Bf5 {[%clk 0:02:54]} 11. Bh2 {[%clk 0:02:55]}  e5 {[%clk 0:02:53]} 12. Nc4 {[%clk 0:02:56]}  e4 {[%clk 0:02:52]} 13. Nfd2 {[%clk 0:02:56]}  d5 {[%clk 0:02:42]} 14. Ne3 {[%clk 0:02:48]}  Bh6 {[%clk 0:02:41]} 15. Nb3 {[%clk 0:02:38]}  b6 {[%clk 0:02:38]} 16. Bb5 {[%clk 0:02:26]}  Rc8 {[%clk 0:02:36]} 17. Ba6 {[%clk 0:02:25]}  Ra8 {[%clk 0:02:24]} 18. Bb7 {[%clk 0:02:25]}  Qd7 {[%clk 0:02:25]} 19. Bxa8 {[%clk 0:02:24]}  Rxa8 {[%clk 0:02:26]} 20. Nxf5 {[%clk 0:02:09]}  Qxf5 {[%clk 0:02:22]} 21. Re1 {[%clk 0:02:08]}  Qd7 {[%clk 0:02:15]} 22. Nd2 {[%clk 0:02:06]}  Nh5 {[%clk 0:02:13]} 23. Nf1 {[%clk 0:02:00]}  f5 {[%clk 0:02:10]} 24. Ne3 {[%clk 0:01:55]}  Rd8 {[%clk 0:02:02]} 25. Qa4 {[%clk 0:01:53]}  Nf6 {[%clk 0:01:57]} 26. Rad1 {[%clk 0:01:44]}  f4 {[%clk 0:01:56]} 27. Ng4 {[%clk 0:01:43]}  Nxg4 {[%clk 0:01:55]} 28. hxg4 {[%clk 0:01:43]}  Rc8 {[%clk 0:01:41]} 29. a3 {[%clk 0:01:36]}  Qxg4 {[%clk 0:01:39]} 30. Qb3 {[%clk 0:01:37]}  Ne7 {[%clk 0:01:36]} 31. Rxe4 {[%clk 0:01:32]}  Kf8 {[%clk 0:01:35]} 32. Rxe7 {[%clk 0:01:07]}  Kxe7 {[%clk 0:01:34]} 33. Re1+ {[%clk 0:01:07]}  Kf8 {[%clk 0:01:23]} 34. Qxd5 {[%clk 0:01:05]}  Re8 {[%clk 0:01:06]} 35. Rxe8+ {[%clk 0:01:01]}  Kxe8 {[%clk 0:01:07]} 36. Qa8+ {[%clk 0:00:57]}  Kf7 {[%clk 0:01:01]} 37. Qxa7+ {[%clk 0:00:57]}  Kg8 {[%clk 0:01:01]} 38. Qa8+ {[%clk 0:00:55]}  Bf8 {[%clk 0:01:00]} 39. Qd5+ {[%clk 0:00:53]}  Kg7 {[%clk 0:00:57]} 40. Qe5+ {[%clk 0:00:51]}  Kg8 {[%clk 0:00:57]} 41. Bxf4 {[%clk 0:00:49]}  b5 {[%clk 0:00:52]} 42. Qd5+ {[%clk 0:00:44]}  Kg7 {[%clk 0:00:52]} 43. Be5+ {[%clk 0:00:43]}  Kh6 {[%clk 0:00:52]} 44. Qf3 {[%clk 0:00:41]}  Qxf3 {[%clk 0:00:47]} 45. gxf3 {[%clk 0:00:41]}  Kg5 {[%clk 0:00:48]} 46. Bc7 {[%clk 0:00:34]}  Kf5 {[%clk 0:00:47]} 47. Kf1 {[%clk 0:00:32]}  g5 {[%clk 0:00:47]} 48. Ke2 {[%clk 0:00:33]}  h5 {[%clk 0:00:46]} 49. Be5 {[%clk 0:00:20]}  h4 {[%clk 0:00:43]} 50. Kf1 {[%clk 0:00:18]}  Be7 {[%clk 0:00:37]} 51. Kg2 {[%clk 0:00:18]}  Bd8 {[%clk 0:00:33]} 52. b3 {[%clk 0:00:17]}  Ke6 {[%clk 0:00:30]} 53. c4 {[%clk 0:00:16]}  bxc4 {[%clk 0:00:30]} 54. bxc4 {[%clk 0:00:17]}  Ba5 {[%clk 0:00:29]} 55. Kh3 {[%clk 0:00:16]}  Bd2 {[%clk 0:00:30]} 56. Kg4 {[%clk 0:00:16]}  Bc1 {[%clk 0:00:26]} 57. a4 {[%clk 0:00:15]}  Bd2 {[%clk 0:00:27]} 58. Bh2 {[%clk 0:00:15]}  Kd7 {[%clk 0:00:18]} 59. d5 {[%clk 0:00:15]}  Ke7 {[%clk 0:00:18]} 60. f4 {[%clk 0:00:15]}  gxf4 {[%clk 0:00:18]} 61. Kxh4 {[%clk 0:00:15]}  Be1 {[%clk 0:00:18]} 62. Bxf4 {[%clk 0:00:14]}  Bxf2+ {[%clk 0:00:19]} 63. Kg4 {[%clk 0:00:15]}  Bc5 {[%clk 0:00:20]} 64. Kf5 {[%clk 0:00:15]}  Kd7 {[%clk 0:00:20]} 65. Be5 {[%clk 0:00:15]}  Ba3 {[%clk 0:00:21]} 66. Ke4 {[%clk 0:00:15]}  Bb4 {[%clk 0:00:21]} 67. Bd4 {[%clk 0:00:14]}  Kd6 {[%clk 0:00:21]} 68. c5+ {[%clk 0:00:15]}  Kc7 {[%clk 0:00:20]} 69. c6 {[%clk 0:00:15]}  Bd2 {[%clk 0:00:19]} 70. Bc5 {[%clk 0:00:15]}  Bc3 {[%clk 0:00:18]} 71. Kd3 {[%clk 0:00:15]}  Be5 {[%clk 0:00:18]} 72. Kc4 {[%clk 0:00:15]}  Bf4 {[%clk 0:00:18]} 73. Kb5 {[%clk 0:00:15]}  Be5 {[%clk 0:00:17]} 74. d6+ {[%clk 0:00:15]}  Kb8 {[%clk 0:00:17]} 75. d7 {[%clk 0:00:15]}  Bc7 {[%clk 0:00:18]} 76. Bd6 {[%clk 0:00:15]}  Ka8 {[%clk 0:00:19]} 77. Bxc7 {[%clk 0:00:14]}  Ka7 {[%clk 0:00:19]} 78. Bb6+ {[%clk 0:00:15]}  Kb8 {[%clk 0:00:20]} 79. d8=Q# {[%clk 0:00:15]} 1-0


[Site "https://www.chess.com"]

[Event "Titled Tuesday Blitz February 21 Early 2023"]
[White "Tologon tegin, Semetei"]
[Black "Bambino Filho, Antonio Carlos"]
[WhiteFideId "13800574"]
[BlackFideId "2113163"]
[WhiteElo "2372"]
[BlackElo "2144"]
[Result "0-1"]
[Round "09"]
[TimeControl "180+2"]
[Date "2023.02.21"]
[WhiteClock "0:00:15"]
[BlackClock "0:00:11"]

1. Nf3 {[%clk 0:02:59]}  c5 {[%clk 0:01:19]} 2. g3 {[%clk 0:03:00]}  Nc6 {[%clk 0:01:19]} 3. Bg2 {[%clk 0:02:58]}  g6 {[%clk 0:01:19]} 4. b3 {[%clk 0:02:58]}  Bg7 {[%clk 0:01:18]} 5. c3 {[%clk 0:02:56]}  e5 {[%clk 0:01:19]} 6. O-O {[%clk 0:02:55]}  Nge7 {[%clk 0:01:17]} 7. e4 {[%clk 0:02:53]}  d6 {[%clk 0:01:17]} 8. c4 {[%clk 0:02:53]}  O-O {[%clk 0:01:17]} 9. Nc3 {[%clk 0:02:53]}  h6 {[%clk 0:01:18]} 10. d3 {[%clk 0:02:53]}  f5 {[%clk 0:01:18]} 11. Nd5 {[%clk 0:02:51]}  Be6 {[%clk 0:01:16]} 12. Bd2 {[%clk 0:02:47]}  f4 {[%clk 0:01:14]} 13. Rb1 {[%clk 0:02:38]}  g5 {[%clk 0:01:14]} 14. h3 {[%clk 0:02:36]}  Ng6 {[%clk 0:01:14]} 15. b4 {[%clk 0:02:31]}  Qd7 {[%clk 0:01:12]} 16. Kh2 {[%clk 0:02:19]}  g4 {[%clk 0:01:11]} 17. hxg4 {[%clk 0:02:12]}  Bxg4 {[%clk 0:01:12]} 18. Qa4 {[%clk 0:02:00]}  Bxf3 {[%clk 0:01:09]} 19. Bxf3 {[%clk 0:01:58]}  fxg3+ {[%clk 0:00:58]} 20. fxg3 {[%clk 0:01:58]}  Rf7 {[%clk 0:00:58]} 21. bxc5 {[%clk 0:01:52]}  dxc5 {[%clk 0:00:58]} 22. Kg2 {[%clk 0:01:41]}  Raf8 {[%clk 0:00:58]} 23. Be3 {[%clk 0:01:24]}  Rxf3 {[%clk 0:00:54]} 24. Rxf3 {[%clk 0:01:15]}  Rxf3 {[%clk 0:00:55]} 25. Rxb7 {[%clk 0:01:03]}  Qxb7 {[%clk 0:00:49]} 26. Kxf3 {[%clk 0:01:03]}  Nd4+ {[%clk 0:00:38]} 27. Bxd4 {[%clk 0:01:02]}  exd4 {[%clk 0:00:39]} 28. Qe8+ {[%clk 0:00:54]}  Kh7 {[%clk 0:00:38]} 29. Nf4 {[%clk 0:00:37]}  Ne5+ {[%clk 0:00:30]} 30. Kg2 {[%clk 0:00:36]}  Qb2+ {[%clk 0:00:27]} 31. Kh3 {[%clk 0:00:36]}  Qc1 {[%clk 0:00:21]} 32. Kg2 {[%clk 0:00:34]}  Qd2+ {[%clk 0:00:21]} 33. Kh3 {[%clk 0:00:34]}  Qe1 {[%clk 0:00:21]} 34. Kg2 {[%clk 0:00:34]}  Qd2+ {[%clk 0:00:16]} 35. Kh3 {[%clk 0:00:34]}  Qd1 {[%clk 0:00:16]} 36. Kg2 {[%clk 0:00:34]}  Qg4 {[%clk 0:00:16]} 37. a4 {[%clk 0:00:24]}  a5 {[%clk 0:00:16]} 38. Qe7 {[%clk 0:00:15]}  Qf3+ {[%clk 0:00:13]} 39. Kh3 {[%clk 0:00:15]}  Ng4 {[%clk 0:00:11]} 0-1


[Site "https://www.chess.com"]

[Event "Titled Tuesday Blitz February 21 Early 2023"]
[White "Kejna, Piotr"]
[Black "Fisher_TheGalactic"]
[WhiteFideId "21821704"]
[WhiteElo "2027"]
[BlackElo "2535"]
[Result "1-0"]
[Round "09"]
[TimeControl "180+2"]
[Date "2023.02.21"]
[WhiteClock "0:00:02"]
[BlackClock "0:00:02"]

1. e4 {[%clk 0:03:00]}  b6 {[%clk 0:02:57]} 2. d4 {[%clk 0:03:00]}  Bb7 {[%clk 0:02:55]} 3. Bd3 {[%clk 0:03:00]}  Nf6 {[%clk 0:02:51]} 4. Qe2 {[%clk 0:02:57]}  e6 {[%clk 0:02:51]} 5. Nf3 {[%clk 0:02:56]}  d5 {[%clk 0:02:50]} 6. e5 {[%clk 0:02:56]}  Nfd7 {[%clk 0:02:49]} 7. Ng5 {[%clk 0:02:50]}  g6 {[%clk 0:02:45]} 8. h4 {[%clk 0:02:46]}  Nc6 {[%clk 0:02:38]} 9. h5 {[%clk 0:02:23]}  Bg7 {[%clk 0:02:12]} 10. hxg6 {[%clk 0:02:01]}  hxg6 {[%clk 0:02:07]} 11. Rxh8+ {[%clk 0:01:58]}  Bxh8 {[%clk 0:02:08]} 12. Nxe6 {[%clk 0:01:39]}  Qh4 {[%clk 0:02:05]} 13. Nxc7+ {[%clk 0:01:37]}  Kd8 {[%clk 0:02:05]} 14. Nxa8 {[%clk 0:01:35]}  Nxd4 {[%clk 0:02:05]} 15. Qe3 {[%clk 0:01:27]}  Qh1+ {[%clk 0:02:02]} 16. Kd2 {[%clk 0:01:26]}  Bxe5 {[%clk 0:02:01]} 17. c3 {[%clk 0:00:52]}  Ne6 {[%clk 0:01:57]} 18. g3 {[%clk 0:00:48]}  d4 {[%clk 0:01:46]} 19. Qe1 {[%clk 0:00:42]}  Qf3 {[%clk 0:01:31]} 20. Kc2 {[%clk 0:00:32]}  Bxa8 {[%clk 0:01:29]} 21. Nd2 {[%clk 0:00:29]}  Qf6 {[%clk 0:01:17]} 22. f4 {[%clk 0:00:27]}  dxc3 {[%clk 0:01:11]} 23. fxe5 {[%clk 0:00:23]}  cxd2 {[%clk 0:01:11]} 24. Qxd2 {[%clk 0:00:21]}  Qxe5 {[%clk 0:01:10]} 25. Qe3 {[%clk 0:00:12]}  Qc7+ {[%clk 0:01:07]} 26. Kd1 {[%clk 0:00:09]}  Ne5 {[%clk 0:00:57]} 27. Bd2 {[%clk 0:00:08]}  Bf3+ {[%clk 0:00:57]} 28. Ke1 {[%clk 0:00:07]}  Qd6 {[%clk 0:00:49]} 29. Be2 {[%clk 0:00:06]}  Bxe2 {[%clk 0:00:48]} 30. Kxe2 {[%clk 0:00:05]}  Nd4+ {[%clk 0:00:49]} 31. Kd1 {[%clk 0:00:05]}  Ndf3 {[%clk 0:00:47]} 32. Rc1 {[%clk 0:00:03]}  Qd5 {[%clk 0:00:38]} 33. Rc2 {[%clk 0:00:03]}  Qxa2 {[%clk 0:00:33]} 34. Ke2 {[%clk 0:00:04]}  Qa6+ {[%clk 0:00:32]} 35. Kd1 {[%clk 0:00:02]}  Qf1+ {[%clk 0:00:31]} 36. Be1 {[%clk 0:00:02]}  Nxe1 {[%clk 0:00:16]} 37. Qxe1 {[%clk 0:00:03]}  Qf3+ {[%clk 0:00:15]} 38. Re2 {[%clk 0:00:03]}  Nc4 {[%clk 0:00:09]} 39. Kc1 {[%clk 0:00:02]}  Nd6 {[%clk 0:00:08]} 40. Rd2 {[%clk 0:00:02]}  Qc6+ {[%clk 0:00:07]} 41. Kb1 {[%clk 0:00:02]}  Kd7 {[%clk 0:00:05]} 42. Qd1 {[%clk 0:00:02]}  Qe4+ {[%clk 0:00:05]} 43. Ka1 {[%clk 0:00:03]}  Qe6 {[%clk 0:00:05]} 44. Rd4 {[%clk 0:00:03]}  Qe5 {[%clk 0:00:06]} 45. Rd5 {[%clk 0:00:03]}  Qxg3 {[%clk 0:00:04]} 46. Qa4+ {[%clk 0:00:02]}  Ke6 {[%clk 0:00:03]} 47. Rd1 {[%clk 0:00:02]}  Qe3 {[%clk 0:00:02]} 48. Qxa7 {[%clk 0:00:01]}  g5 {[%clk 0:00:02]} 49. Qa2+ {[%clk 0:00:01]}  Kf6 {[%clk 0:00:02]} 50. Qd5 {[%clk 0:00:02]}  Nf5 {[%clk 0:00:02]} 51. Rf1 {[%clk 0:00:02]}  Qe6 {[%clk 0:00:02]} 52. Qd4+ {[%clk 0:00:02]}  Kg6 {[%clk 0:00:02]} 53. Qd3 {[%clk 0:00:03]}  g4 {[%clk 0:00:02]} 54. Rg1 {[%clk 0:00:02]}  Kg5 {[%clk 0:00:02]} 55. Qd2+ {[%clk 0:00:03]}  Qe3 {[%clk 0:00:02]} 56. Qd8+ {[%clk 0:00:03]}  Kf4 {[%clk 0:00:02]} 57. Qc7+ {[%clk 0:00:03]}  Kf3 {[%clk 0:00:02]} 58. Rf1+ {[%clk 0:00:03]}  Kg2 {[%clk 0:00:02]} 59. Rxf5 {[%clk 0:00:03]}  g3 {[%clk 0:00:02]} 60. Qc6+ {[%clk 0:00:02]} 1-0


[Site "https://www.chess.com"]

[Event "Titled Tuesday Blitz February 21 Early 2023"]
[White "Santos Flores, Alberto"]
[Black "Miszler, Levente"]
[WhiteFideId "3601234"]
[BlackFideId "763276"]
[WhiteElo "2164"]
[BlackElo "2271"]
[Result "1-0"]
[Round "09"]
[TimeControl "180+2"]
[Date "2023.02.21"]
[WhiteClock "0:00:23"]
[BlackClock "0:00:05"]

1. e4 {[%clk 0:03:00]}  e6 {[%clk 0:03:00]} 2. d4 {[%clk 0:02:59]}  d5 {[%clk 0:03:00]} 3. Nc3 {[%clk 0:02:59]}  dxe4 {[%clk 0:02:55]} 4. Nxe4 {[%clk 0:03:00]}  Nf6 {[%clk 0:02:54]} 5. Nxf6+ {[%clk 0:02:59]}  gxf6 {[%clk 0:02:55]} 6. Nf3 {[%clk 0:02:59]}  f5 {[%clk 0:02:52]} 7. Bg5 {[%clk 0:02:55]}  Be7 {[%clk 0:02:52]} 8. Bxe7 {[%clk 0:02:55]}  Qxe7 {[%clk 0:02:52]} 9. Qd2 {[%clk 0:02:55]}  Nd7 {[%clk 0:02:42]} 10. O-O-O {[%clk 0:02:55]}  Nf6 {[%clk 0:02:42]} 11. Ne5 {[%clk 0:02:52]}  Bd7 {[%clk 0:02:40]} 12. g3 {[%clk 0:02:49]}  O-O-O {[%clk 0:02:38]} 13. Bg2 {[%clk 0:02:49]}  Ne4 {[%clk 0:02:36]} 14. Qe2 {[%clk 0:02:47]}  Nd6 {[%clk 0:02:30]} 15. Kb1 {[%clk 0:02:43]}  f6 {[%clk 0:02:30]} 16. Nxd7 {[%clk 0:02:43]}  Qxd7 {[%clk 0:02:30]} 17. Rhe1 {[%clk 0:02:41]}  Rhe8 {[%clk 0:02:29]} 18. f4 {[%clk 0:02:36]}  Ne4 {[%clk 0:01:59]} 19. Bxe4 {[%clk 0:02:33]}  fxe4 {[%clk 0:02:00]} 20. Qxe4 {[%clk 0:02:33]}  e5 {[%clk 0:02:00]} 21. fxe5 {[%clk 0:02:29]}  fxe5 {[%clk 0:02:00]} 22. d5 {[%clk 0:02:20]}  c6 {[%clk 0:02:00]} 23. c4 {[%clk 0:02:18]}  cxd5 {[%clk 0:01:58]} 24. Rxd5 {[%clk 0:02:15]}  Qc6 {[%clk 0:01:36]} 25. Rxe5 {[%clk 0:02:10]}  Qxe4+ {[%clk 0:01:27]} 26. R5xe4 {[%clk 0:02:08]}  Rf8 {[%clk 0:01:10]} 27. Rh4 {[%clk 0:01:57]}  Rf7 {[%clk 0:01:08]} 28. Re2 {[%clk 0:01:54]}  Kc7 {[%clk 0:01:04]} 29. Kc2 {[%clk 0:01:54]}  Rd6 {[%clk 0:01:03]} 30. Rd2 {[%clk 0:01:48]}  Re6 {[%clk 0:01:01]} 31. a3 {[%clk 0:01:41]}  Rc6 {[%clk 0:00:56]} 32. Kc3 {[%clk 0:01:36]}  Re6 {[%clk 0:00:54]} 33. Rhd4 {[%clk 0:01:31]}  Re3+ {[%clk 0:00:47]} 34. R4d3 {[%clk 0:01:30]}  Re1 {[%clk 0:00:47]} 35. h4 {[%clk 0:01:27]}  Rg1 {[%clk 0:00:46]} 36. Re3 {[%clk 0:01:22]}  Rg7 {[%clk 0:00:45]} 37. Rdd3 {[%clk 0:01:17]}  Rg2 {[%clk 0:00:45]} 38. b4 {[%clk 0:01:17]}  Ra2 {[%clk 0:00:40]} 39. Kb3 {[%clk 0:01:16]}  Rg2 {[%clk 0:00:41]} 40. c5 {[%clk 0:01:15]}  Rg1 {[%clk 0:00:39]} 41. a4 {[%clk 0:01:13]}  Rb1+ {[%clk 0:00:36]} 42. Kc4 {[%clk 0:01:10]}  Rc1+ {[%clk 0:00:36]} 43. Rc3 {[%clk 0:01:09]}  Rg1 {[%clk 0:00:36]} 44. b5 {[%clk 0:00:59]}  Ra1 {[%clk 0:00:32]} 45. Kb3 {[%clk 0:00:58]}  Rb1+ {[%clk 0:00:31]} 46. Kc2 {[%clk 0:00:57]}  Ra1 {[%clk 0:00:24]} 47. Kb3 {[%clk 0:00:56]}  Rb1+ {[%clk 0:00:24]} 48. Ka2 {[%clk 0:00:57]}  Rg1 {[%clk 0:00:21]} 49. c6 {[%clk 0:00:57]}  bxc6 {[%clk 0:00:18]} 50. Rxc6+ {[%clk 0:00:57]}  Kb7 {[%clk 0:00:18]} 51. Rcc3 {[%clk 0:00:55]}  Rg2+ {[%clk 0:00:16]} 52. Kb3 {[%clk 0:00:55]}  Rg1 {[%clk 0:00:16]} 53. Kb4 {[%clk 0:00:53]}  Rb1+ {[%clk 0:00:15]} 54. Ka5 {[%clk 0:00:52]}  Rg1 {[%clk 0:00:16]} 55. Re6 {[%clk 0:00:45]}  R1xg3 {[%clk 0:00:15]} 56. Rxg3 {[%clk 0:00:45]}  Rxg3 {[%clk 0:00:16]} 57. Re7+ {[%clk 0:00:45]}  Kb8 {[%clk 0:00:16]} 58. Rxh7 {[%clk 0:00:46]}  Rg4 {[%clk 0:00:15]} 59. h5 {[%clk 0:00:46]}  Rh4 {[%clk 0:00:15]} 60. h6 {[%clk 0:00:46]}  Ka8 {[%clk 0:00:13]} 61. b6 {[%clk 0:00:26]}  axb6+ {[%clk 0:00:13]} 62. Kxb6 {[%clk 0:00:27]}  Rb4+ {[%clk 0:00:13]} 63. Ka5 {[%clk 0:00:24]}  Rh4 {[%clk 0:00:10]} 64. Kb5 {[%clk 0:00:24]}  Kb8 {[%clk 0:00:08]} 65. a5 {[%clk 0:00:23]}  Rh5+ {[%clk 0:00:07]} 66. Kb6 {[%clk 0:00:23]}  Kc8 {[%clk 0:00:05]} 67. a6 {[%clk 0:00:24]}  Rh1 {[%clk 0:00:05]} 68. Rh8+ {[%clk 0:00:22]}  Kd7 {[%clk 0:00:05]} 69. a7 {[%clk 0:00:23]}  Rb1+ {[%clk 0:00:05]} 70. Kc5 {[%clk 0:00:23]} 1-0


[Site "https://www.chess.com"]

[Event "Titled Tuesday Blitz February 21 Early 2023"]
[White "Deng, Henry"]
[Black "Kalajzic, Ivan"]
[WhiteFideId "30965454"]
[BlackFideId "14506378"]
[WhiteElo "2168"]
[BlackElo "2062"]
[Result "0-1"]
[Round "09"]
[TimeControl "180+2"]
[Date "2023.02.21"]
[WhiteClock "0:00:24"]
[BlackClock "0:01:07"]

1. e4 {[%clk 0:00:59]}  Nc6 {[%clk 0:02:49]} 2. b3 {[%clk 0:00:59]}  e5 {[%clk 0:02:49]} 3. Bb2 {[%clk 0:01:00]}  Bc5 {[%clk 0:02:49]} 4. Nf3 {[%clk 0:01:00]}  d6 {[%clk 0:02:48]} 5. Bc4 {[%clk 0:01:01]}  Nf6 {[%clk 0:02:47]} 6. O-O {[%clk 0:01:02]}  O-O {[%clk 0:02:46]} 7. d3 {[%clk 0:01:02]}  Bg4 {[%clk 0:02:44]} 8. h3 {[%clk 0:01:02]}  Bh5 {[%clk 0:02:43]} 9. a4 {[%clk 0:01:02]}  a6 {[%clk 0:02:39]} 10. Nbd2 {[%clk 0:01:02]}  Nd4 {[%clk 0:02:28]} 11. c3 {[%clk 0:01:01]}  Ne6 {[%clk 0:02:23]} 12. g4 {[%clk 0:01:01]}  Bg6 {[%clk 0:02:23]} 13. d4 {[%clk 0:00:58]}  exd4 {[%clk 0:02:18]} 14. cxd4 {[%clk 0:00:59]}  Ba7 {[%clk 0:02:15]} 15. e5 {[%clk 0:00:59]}  dxe5 {[%clk 0:01:59]} 16. dxe5 {[%clk 0:00:59]}  Ne4 {[%clk 0:01:55]} 17. Nxe4 {[%clk 0:00:58]}  Bxe4 {[%clk 0:01:55]} 18. Nd2 {[%clk 0:00:58]}  Bc6 {[%clk 0:01:51]} 19. Bxe6 {[%clk 0:00:57]}  fxe6 {[%clk 0:01:50]} 20. Kh2 {[%clk 0:00:55]}  Qh4 {[%clk 0:01:43]} 21. f4 {[%clk 0:00:54]}  Bf2 {[%clk 0:01:29]} 22. Rg1 {[%clk 0:00:40]}  Rxf4 {[%clk 0:01:16]} 23. Qe2 {[%clk 0:00:24]}  Bxg1+ {[%clk 0:01:07]} 0-1


[Site "https://www.chess.com"]

[Event "Titled Tuesday Blitz February 21 Early 2023"]
[White "Ramirez Allo, Eduardo"]
[Black "Corredor Castellanos, Camilo"]
[WhiteFideId "2224178"]
[BlackFideId "4425871"]
[WhiteElo "2274"]
[BlackElo "1957"]
[Result "1-0"]
[Round "09"]
[TimeControl "180+2"]
[Date "2023.02.21"]
[WhiteClock "0:02:05"]
[BlackClock "0:00:55"]

1. d4 {[%clk 0:03:00]}  g6 {[%clk 0:02:57]} 2. c4 {[%clk 0:02:59]}  Bg7 {[%clk 0:02:57]} 3. Nf3 {[%clk 0:02:58]}  c5 {[%clk 0:02:57]} 4. g3 {[%clk 0:02:57]}  Nf6 {[%clk 0:02:48]} 5. Bg2 {[%clk 0:02:55]}  O-O {[%clk 0:02:49]} 6. O-O {[%clk 0:02:55]}  cxd4 {[%clk 0:02:49]} 7. Nxd4 {[%clk 0:02:54]}  d6 {[%clk 0:02:49]} 8. Nc3 {[%clk 0:02:53]}  a6 {[%clk 0:02:47]} 9. b3 {[%clk 0:02:53]}  Nbd7 {[%clk 0:02:43]} 10. Bb2 {[%clk 0:02:53]}  Ra7 {[%clk 0:02:40]} 11. Rc1 {[%clk 0:02:51]}  Qa5 {[%clk 0:02:39]} 12. Qd2 {[%clk 0:02:49]}  Qh5 {[%clk 0:02:31]} 13. Rfd1 {[%clk 0:02:47]}  Bh6 {[%clk 0:02:30]} 14. e3 {[%clk 0:02:46]}  Ne5 {[%clk 0:02:23]} 15. Nd5 {[%clk 0:02:37]}  Nxd5 {[%clk 0:02:20]} 16. cxd5 {[%clk 0:02:37]}  Bg4 {[%clk 0:02:17]} 17. Re1 {[%clk 0:02:37]}  a5 {[%clk 0:02:08]} 18. Rc7 {[%clk 0:02:33]}  Re8 {[%clk 0:01:53]} 19. Rec1 {[%clk 0:02:33]}  a4 {[%clk 0:01:48]} 20. b4 {[%clk 0:02:27]}  a3 {[%clk 0:01:44]} 21. Ba1 {[%clk 0:02:27]}  Bh3 {[%clk 0:01:02]} 22. f4 {[%clk 0:02:11]}  Bxg2 {[%clk 0:00:57]} 23. Kxg2 {[%clk 0:02:10]}  Ng4 {[%clk 0:00:56]} 24. Nf3 {[%clk 0:02:10]}  Raa8 {[%clk 0:00:54]} 25. h3 {[%clk 0:02:08]}  Nf6 {[%clk 0:00:54]} 26. Bxf6 {[%clk 0:02:04]}  exf6 {[%clk 0:00:55]} 27. g4 {[%clk 0:02:05]} 1-0


[Site "https://www.chess.com"]

[Event "Titled Tuesday Blitz February 21 Early 2023"]
[White "Ezat, Mohamed"]
[Black "Topalov, Aleksandar"]
[WhiteFideId "10600906"]
[BlackFideId "925659"]
[WhiteElo "2402"]
[BlackElo "2233"]
[Result "0-1"]
[Round "09"]
[TimeControl "180+2"]
[Date "2023.02.21"]
[WhiteClock "0:00:37"]
[BlackClock "0:00:55"]

1. d4 {[%clk 0:02:44]}  Nf6 {[%clk 0:02:58]} 2. Nf3 {[%clk 0:02:43]}  g6 {[%clk 0:02:58]} 3. Nbd2 {[%clk 0:02:42]}  d5 {[%clk 0:02:56]} 4. e3 {[%clk 0:02:41]}  Bg7 {[%clk 0:02:56]} 5. b4 {[%clk 0:02:39]}  O-O {[%clk 0:02:53]} 6. c4 {[%clk 0:02:38]}  c6 {[%clk 0:02:51]} 7. a4 {[%clk 0:02:37]}  a6 {[%clk 0:02:50]} 8. Bd3 {[%clk 0:02:32]}  Nbd7 {[%clk 0:02:46]} 9. Bb2 {[%clk 0:02:29]}  e5 {[%clk 0:02:30]} 10. Nxe5 {[%clk 0:02:26]}  Nxe5 {[%clk 0:02:30]} 11. dxe5 {[%clk 0:02:25]}  Ng4 {[%clk 0:02:30]} 12. Nf3 {[%clk 0:02:24]}  Qe7 {[%clk 0:01:51]} 13. O-O {[%clk 0:02:19]}  dxc4 {[%clk 0:01:49]} 14. Bxc4 {[%clk 0:02:18]}  Nxe5 {[%clk 0:01:49]} 15. Nxe5 {[%clk 0:02:17]}  Bxe5 {[%clk 0:01:49]} 16. Bxe5 {[%clk 0:02:17]}  Qxe5 {[%clk 0:01:49]} 17. Qb3 {[%clk 0:02:13]}  Be6 {[%clk 0:01:42]} 18. Bxe6 {[%clk 0:02:12]}  Qxe6 {[%clk 0:01:42]} 19. Qxe6 {[%clk 0:02:12]}  fxe6 {[%clk 0:01:43]} 20. Rfd1 {[%clk 0:02:12]}  Rfd8 {[%clk 0:01:43]} 21. Kf1 {[%clk 0:02:10]}  Kf7 {[%clk 0:01:42]} 22. Ke2 {[%clk 0:02:10]}  Ke7 {[%clk 0:01:43]} 23. g4 {[%clk 0:02:02]}  e5 {[%clk 0:01:40]} 24. h4 {[%clk 0:02:00]}  Ke6 {[%clk 0:01:35]} 25. f4 {[%clk 0:01:55]}  Rd5 {[%clk 0:01:26]} 26. Rxd5 {[%clk 0:01:52]}  cxd5 {[%clk 0:01:22]} 27. Rc1 {[%clk 0:01:49]}  exf4 {[%clk 0:01:18]} 28. exf4 {[%clk 0:01:48]}  Kd6 {[%clk 0:01:19]} 29. Kf2 {[%clk 0:01:38]}  Re8 {[%clk 0:01:17]} 30. Re1 {[%clk 0:01:33]}  Rxe1 {[%clk 0:01:16]} 31. Kxe1 {[%clk 0:01:32]}  h5 {[%clk 0:01:16]} 32. gxh5 {[%clk 0:00:41]}  gxh5 {[%clk 0:01:15]} 33. Ke2 {[%clk 0:00:42]}  Ke6 {[%clk 0:01:16]} 34. Kd3 {[%clk 0:00:42]}  Kf5 {[%clk 0:01:16]} 35. Kd4 {[%clk 0:00:42]}  Kxf4 {[%clk 0:01:16]} 36. Kxd5 {[%clk 0:00:43]}  Kg4 {[%clk 0:01:17]} 37. Kd6 {[%clk 0:00:42]}  Kxh4 {[%clk 0:01:17]} 38. Kc7 {[%clk 0:00:42]}  Kg4 {[%clk 0:01:14]} 39. Kxb7 {[%clk 0:00:42]}  h4 {[%clk 0:01:15]} 40. Kxa6 {[%clk 0:00:39]}  h3 {[%clk 0:01:15]} 41. b5 {[%clk 0:00:40]}  h2 {[%clk 0:01:15]} 42. b6 {[%clk 0:00:40]}  h1=Q {[%clk 0:01:16]} 43. b7 {[%clk 0:00:40]}  Qh6+ {[%clk 0:01:11]} 44. Ka7 {[%clk 0:00:38]}  Qe3+ {[%clk 0:01:11]} 45. Ka8 {[%clk 0:00:38]}  Qe4 {[%clk 0:01:11]} 46. Ka7 {[%clk 0:00:34]}  Qxa4+ {[%clk 0:01:09]} 47. Kb6 {[%clk 0:00:34]}  Qb4+ {[%clk 0:01:09]} 48. Ka6 {[%clk 0:00:33]}  Qd6+ {[%clk 0:01:03]} 49. Ka7 {[%clk 0:00:33]}  Qc7 {[%clk 0:01:00]} 50. Ka8 {[%clk 0:00:32]}  Qa5+ {[%clk 0:01:00]} 51. Kb8 {[%clk 0:00:33]}  Kf5 {[%clk 0:01:00]} 52. Kc8 {[%clk 0:00:34]}  Qc5+ {[%clk 0:01:00]} 53. Kd7 {[%clk 0:00:33]}  Qb6 {[%clk 0:00:58]} 54. Kc8 {[%clk 0:00:34]}  Qc6+ {[%clk 0:00:58]} 55. Kb8 {[%clk 0:00:35]}  Ke6 {[%clk 0:00:58]} 56. Ka7 {[%clk 0:00:36]}  Qa4+ {[%clk 0:00:57]} 57. Kb6 {[%clk 0:00:36]}  Qb4+ {[%clk 0:00:57]} 58. Kc6 {[%clk 0:00:37]}  Qd6+ {[%clk 0:00:56]} 59. Kb5 {[%clk 0:00:36]}  Qb8 {[%clk 0:00:56]} 60. Kb6 {[%clk 0:00:36]}  Kd7 {[%clk 0:00:57]} 61. Ka6 {[%clk 0:00:37]}  Kc7 {[%clk 0:00:56]} 62. Ka5 {[%clk 0:00:38]}  Qxb7 {[%clk 0:00:56]} 63. Ka4 {[%clk 0:00:37]}  Kc6 {[%clk 0:00:56]} 64. Ka5 {[%clk 0:00:37]}  Qb5# {[%clk 0:00:55]} 0-1


[Site "https://www.chess.com"]